bitfinex/quotes_ETHUSD_20241231
["timestamp","ask_amount","ask_price","bid_price","bid_amount"]
[1735666593452,2.97753,3358.5,3357.3,2.97854]
[1735666593682,2.97753,3358.5,3357.1,0.8299]
[1735666593683,2.97754,3358.5,3357.2,2.97859]
[1735666593851,2.97763,3358.4,3357.2,2.97859]
[1735666594332,2.97743,3358.6,3357.1,0.8299]
[1735666594659,2.97743,3358.6,3357.4,2.97848]
[1735666595054,2.97743,3358.6,3357.5,2.97839]
[1735666595257,3.0,3358.7,3357.1,0.8299]
[1735666595645,2.97795,3358.1,3357.1,0.8299]
[1735666595969,3.0,3358.4,3357.2,2.97865]
[1735666596172,2.97756,3358.5,3357.1,0.8299]
[1735666596173,4.8437348,3358.8,3357.4,2.97847]
[1735666596359,0.8041,3359.3,3357.1,0.8299]
[1735666596360,2.97689,3359.2,3357.1,0.8299]
[1735666596553,3.0,3359.1,3357.1,0.8299]
[1735666596869,2.9778,3358.2,3357.1,0.8299]
[1735666597068,4.8437348,3358.8,3357.1,0.8299]
[1735666597069,3.0,3358.4,3357.1,0.8299]
[1735666597270,2.97769,3358.3,3357.1,0.8299]
[1735666597483,2.97785,3358.2,3357.1,0.8299]
[1735666597696,3.0,3358.4,3357.1,0.8299]
[1735666597865,2.97791,3358.1,3357.1,0.8299]
[1735666598074,3.0,3358.4,3357.1,0.8299]
[1735666598269,2.97822,3357.8,3357.1,0.8299]
[1735666598574,3.0,3357.9,3356.0,2.97969]
[1735666598901,2.97868,3357.2,3356.1,2.97964]
[1735666599050,2.97851,3357.4,3356.2,2.97953]
[1735666599248,2.97859,3357.3,3356.0,0.380959]
[1735666599454,2.97843,3357.5,3356.2,2.97947]
[1735666599649,2.9786,3357.3,3356.0,0.380959]
[1735666599902,2.97845,3357.5,3356.2,2.9795]
[1735666600067,2.97845,3357.5,3356.3,2.97944]
[1735666600454,2.9785,3357.4,3356.3,2.97944]
[1735666600654,3.0,3358.0,3356.0,2.97965]
[1735666600655,2.97866,3357.3,3356.0,2.97965]
[1735666600854,2.97866,3357.3,3355.8,0.8299]
[1735666601051,3.0,3358.0,3355.8,0.8299]
[1735666601287,2.97869,3357.2,3355.8,0.8299]
[1735666601481,2.97845,3357.5,3356.2,2.97954]
[1735666601938,5.97802,3358.0,3355.8,4.190743]
[1735666602147,2.97815,3357.8,3356.6,2.97918]
[1735666602440,2.97858,3357.3,3356.1,2.97961]
[1735666602742,2.97876,3357.1,3356.0,2.97971]
[1735666603038,2.97838,3357.6,3356.1,2.97963]
[1735666603254,2.97805,3357.9,3356.2,2.97948]
[1735666603425,2.9785,3357.4,3356.2,2.97948]
[1735666603625,2.97805,3357.9,3355.9,0.7721]
[1735666603798,2.97861,3357.3,3356.1,2.97963]
[1735666604004,2.97877,3357.1,3355.9,0.7721]
[1735666604322,2.97877,3357.1,3356.1,2.97963]
[1735666604523,2.97859,3357.3,3356.2,2.97955]
[1735666604729,3.0,3357.8,3355.9,0.7721]
[1735666604951,2.97853,3357.4,3356.1,2.97959]
[1735666605117,2.97849,3357.5,3356.3,2.97942]
[1735666605437,5.9782,3357.8,3356.1,2.97958]
[1735666605438,2.97858,3357.4,3356.1,2.97958]
[1735666605649,2.97814,3357.8,3356.1,2.97956]
[1735666605839,2.97858,3357.4,3355.9,0.7721]
[1735666606142,2.97779,3358.2,3356.2,0.7721]
[1735666606339,2.9782,3357.8,3356.5,2.9792]
[1735666606543,0.8035,3358.6,3357.4,2.97842]
[1735666606839,2.97719,3358.9,3357.4,0.7721]
[1735666607063,8.55493619,3359.6,3357.4,0.7721]
[1735666607233,8.55493619,3359.6,3356.6,3.78841559]
[1735666607234,1.7899006,3359.6,3358.7,2.9773]
[1735666607559,2.97665,3359.5,3358.8,0.7721]
[1735666607763,1.7899006,3359.6,3358.9,2.97714]
[1735666608063,2.97665,3359.5,3358.8,0.7721]
[1735666608364,2.97601,3360.2,3358.8,0.7721]
[1735666608565,2.97637,3359.8,3358.8,0.7721]
[1735666608719,3.78841559,3359.6,3357.8,0.7721]
[1735666608918,3.78841559,3358.6,3357.4,0.7721]
[1735666609123,0.8035,3359.0,3356.9,0.7721]
[1735666609124,2.9785,3357.4,3356.9,0.7721]
[1735666609322,3.78841559,3358.1,3356.9,0.7721]
[1735666609541,2.97831,3357.7,3356.9,0.7721]
[1735666609864,2.97788,3358.1,3356.9,0.7721]
[1735666610086,6.76590559,3358.6,3356.9,0.7721]
[1735666610392,2.97815,3357.8,3356.9,0.7721]
[1735666610527,3.0,3358.5,3356.9,0.7721]
[1735666610528,3.0,3358.3,3356.9,3.75102]
[1735666610924,3.0,3358.3,3356.9,1.147202]
[1735666611224,3.0,3358.3,3356.2,3.354707]
[1735666611225,2.97717,3358.9,3357.9,0.7721]
[1735666611421,4.1687782,3359.4,3358.3,2.97763]
[1735666611625,1.1920282,3359.4,3357.9,0.7721]
[1735666611874,2.97694,3359.2,3357.9,0.7721]
[1735666612075,2.97694,3359.2,3358.2,2.97778]
[1735666612291,3.0,3359.5,3358.2,2.97778]
[1735666612626,2.97696,3359.2,3358.2,2.97778]
[1735666612865,1.1920282,3359.6,3358.3,0.7721]
[1735666613081,4.1685882,3359.6,3358.3,0.7721]
[1735666613284,2.97656,3359.6,3358.4,2.97757]
[1735666613506,3.78841559,3359.6,3358.3,0.7721]
[1735666613630,2.97812,3357.9,3357.7,0.7721]
[1735666613828,2.97812,3357.9,3355.9,2.97974]
[1735666613829,2.97863,3357.3,3356.3,3.75156]
[1735666614064,3.8035,3358.0,3356.5,2.97924]
[1735666614065,2.97833,3357.6,3356.5,2.97924]
[1735666614286,2.97841,3357.5,3356.5,2.97924]
[1735666614971,2.97841,3357.5,3356.3,1.147256]
[1735666615142,2.97841,3357.5,3356.4,2.97929]
[1735666615337,3.78841559,3358.1,3356.3,0.7721]
[1735666615338,2.97822,3357.8,3356.3,0.7721]
[1735666615537,2.97822,3357.8,3356.6,2.97912]
[1735666615739,3.78841559,3358.1,3356.4,2.97931]
[1735666615965,3.78841559,3358.1,3356.5,2.97926]
[1735666615966,2.9783,3357.7,3356.5,2.97926]
[1735666616168,2.97841,3357.5,3356.3,3.75155]
[1735666616372,2.97844,3357.5,3356.4,2.97936]
[1735666616699,3.0,3358.0,3356.4,2.97938]
[1735666616847,2.9785,3357.4,3356.4,2.97938]
[1735666617691,3.0,3358.0,3356.3,0.7721]
[1735666617885,2.97868,3357.2,3356.3,0.7721]
[1735666618273,3.78841559,3357.6,3356.3,0.7721]
[1735666618450,2.97875,3357.2,3356.3,0.7721]
[1735666619170,3.78841559,3357.6,3356.3,0.7721]
[1735666619382,2.97901,3356.9,3356.3,0.7721]
[1735666621001,3.0,3357.0,3355.3,0.7806]
[1735666621591,3.0,3356.5,3355.3,0.7806]
[1735666621791,3.0,3356.5,3354.7,0.7806]
[1735666621792,3.0,3355.8,3354.7,0.7806]
[1735666621965,2.9808,3354.8,3354.7,0.7806]
[1735666622146,2.98089,3354.7,3354.6,0.0501965]
[1735666622346,5.98089,3354.7,3354.6,0.0501965]
[1735666622976,2.98115,3354.4,3353.4,0.7806]
[1735666623153,3.78841559,3354.2,3353.1,0.31153559]
[1735666623350,3.0,3354.1,3353.1,0.31153559]
[1735666623555,2.98098,3354.6,3353.3,2.98212]
[1735666623791,2.98098,3354.6,3353.4,2.98203]
[1735666623965,3.0,3354.6,3352.9,3.76303]
[1735666624154,5.981,3354.6,3353.3,2.98205]
[1735666624563,3.78841559,3354.7,3353.0,0.7806]
[1735666624711,3.0,3354.1,3353.0,0.7806]
[1735666625110,2.98169,3353.8,3352.0,0.7806]
[1735666625275,2.98196,3353.5,3352.3,2.98301]
[1735666625473,0.7989,3354.1,3352.4,0.7806]
[1735666625717,0.56591731,3355.5,3352.4,0.7806]
[1735666625718,6.76933559,3354.7,3352.6,0.7806]
[1735666626033,1.1920282,3356.0,3354.3,2.98123]
[1735666626034,0.7989,3355.4,3354.3,2.98123]
[1735666626324,3.78841559,3355.7,3354.5,0.7806]
[1735666626325,6.76841559,3355.7,3354.5,0.7806]
[1735666626469,3.78841559,3355.2,3354.4,0.03421686]
[1735666626671,2.9807,3355.0,3354.6,0.03412716]
[1735666626912,5.98071,3354.9,3353.6,2.98184]
[1735666627072,3.78841559,3355.2,3353.6,0.298184]
[1735666627272,1.1920282,3355.5,3353.7,0.03724623]
[1735666627474,1.1920282,3355.5,3354.2,2.98125]
[1735666627673,1.1920282,3355.5,3353.7,0.03724623]
[1735666627674,3.78841559,3355.2,3353.7,0.03724623]
[1735666627894,3.78841559,3355.2,3354.3,0.04064785]
[1735666628222,2.9807,3355.0,3352.6,3.0]
[1735666628387,2.9807,3355.0,3353.9,2.98158]
[1735666628597,2.98079,3354.9,3353.6,2.98184]
[1735666628798,3.0,3354.6,3352.1,3.29469358]
[1735666629130,3.0,3354.6,3352.1,0.31155358]
[1735666629328,0.7989,3355.0,3353.8,2.98163]
[1735666629492,2.98084,3354.8,3353.6,2.98187]
[1735666629841,6.78841559,3354.7,3353.5,0.7806]
[1735666629994,2.98124,3354.4,3352.4,0.7806]
[1735666630194,0.7989,3354.6,3351.7,2.9835]
[1735666630195,0.7989,3354.6,3352.5,0.7806]
[1735666630378,2.98107,3354.5,3352.8,2.98255]
[1735666630579,2.98107,3354.5,3352.9,2.98241]
[1735666630775,2.98114,3354.5,3353.0,0.8159]
[1735666631012,2.98109,3354.5,3353.0,0.8159]
[1735666631238,9.76938559,3354.7,3353.0,0.8159]
[1735666631441,2.98098,3354.6,3353.4,2.98198]
[1735666631579,2.98098,3354.6,3353.0,3.79823]
[1735666631580,2.98098,3354.6,3353.0,0.8159]
[1735666631781,2.98098,3354.6,3353.5,2.98192]
[1735666632569,3.78841559,3354.7,3353.0,0.8159]
[1735666632767,6.76936559,3354.7,3353.2,2.98219]
[1735666632912,3.78841559,3354.7,3353.0,0.8159]
[1735666633115,2.98139,3354.2,3353.0,0.8159]
[1735666633468,0.7974,3355.1,3353.0,0.8159]
[1735666633670,0.7974,3355.1,3353.1,1.19574]
[1735666633882,2.98079,3354.9,3353.2,2.98222]
[1735666634022,2.98079,3354.9,3351.8,0.25]
[1735666634023,3.78841559,3354.2,3352.5,0.8159]
[1735666634212,6.76978559,3354.2,3352.5,0.8159]
[1735666634549,3.78841559,3354.2,3352.9,2.98244]
[1735666634718,2.98205,3353.4,3352.5,0.8159]
[1735666634915,2.9815,3354.1,3352.5,0.8159]
[1735666635115,2.98171,3353.8,3352.6,2.98275]
[1735666635329,2.98149,3354.1,3353.0,2.9824]
[1735666635553,3.78841559,3354.2,3352.5,0.8159]
[1735666635939,2.98134,3354.2,3353.0,2.98232]
[1735666636220,3.78841559,3354.2,3352.5,0.8159]
[1735666636423,5.96284,3354.1,3352.5,0.8159]
[1735666636694,3.78841559,3353.7,3352.5,0.8159]
[1735666636824,2.98203,3353.5,3352.5,0.8159]
[1735666637121,0.7974,3354.6,3352.6,2.98275]
[1735666637325,2.98121,3354.4,3352.7,2.98259]
[1735666637578,2.98121,3354.4,3352.5,1.195784]
[1735666637990,2.98159,3354.0,3352.5,1.195784]
[1735666638299,0.7974,3355.1,3353.4,0.8159]
[1735666638590,1.1920282,3355.6,3354.0,2.98144]
[1735666638788,2.98055,3355.1,3354.0,2.98144]
[1735666638997,2.98028,3355.4,3354.3,2.98122]
[1735666639284,4.1721482,3355.6,3354.5,2.98099]
[1735666639493,2.98018,3355.5,3354.4,0.8159]
[1735666639625,2.98018,3355.5,3352.4,6.77131559]
[1735666639626,3.78841559,3355.2,3353.8,0.8159]
[1735666639822,6.76936559,3354.7,3352.7,2.98267]
[1735666640068,2.98126,3354.3,3352.8,2.98258]
[1735666640238,2.98154,3354.0,3352.9,2.98248]
[1735666640438,0.7974,3355.0,3352.6,0.8159]
[1735666640439,3.78841559,3354.2,3352.6,0.8159]
[1735666640644,3.78841559,3354.2,3352.8,2.98253]
[1735666640865,3.78841559,3354.7,3352.6,0.8159]
[1735666641074,2.98142,3354.1,3352.6,3.79862]
[1735666641227,2.98174,3353.8,3352.6,3.79862]
[1735666641424,2.98216,3353.3,3352.6,0.8159]
[1735666641644,0.7974,3354.0,3352.7,2.98264]
[1735666641645,2.98176,3353.8,3352.7,2.98264]
[1735666641841,2.9813,3354.3,3352.7,0.379854]
[1735666642170,3.78841559,3354.7,3352.8,0.8159]
[1735666642366,2.98199,3353.5,3352.8,0.8159]
[1735666642530,2.98165,3353.9,3352.8,0.8159]
[1735666642727,2.98204,3353.4,3352.8,0.8159]
[1735666643661,2.98245,3353.0,3351.8,2.98338]
[1735666643847,2.98251,3352.9,3351.5,2.98369]
[1735666644056,2.98187,3353.6,3351.6,0.42933054]
[1735666644371,2.98187,3353.6,3351.3,3.79973]
[1735666644372,2.98297,3352.4,3351.3,3.79973]
[1735666644529,2.98278,3352.6,3351.7,0.04382591]
[1735666644728,3.78841559,3353.7,3351.8,0.8159]
[1735666645170,2.98254,3352.9,3351.8,0.8159]
[1735666645372,2.98204,3353.4,3351.8,0.8159]
[1735666645665,2.98255,3352.9,3351.9,0.03722386]
[1735666645870,2.9826,3352.8,3351.9,0.03722386]
[1735666646728,0.7978,3352.9,3351.8,0.8159]
[1735666647242,2.98331,3352.0,3351.3,0.821]
[1735666647572,3.78841559,3352.2,3351.4,0.04074723]
[1735666647776,3.78841559,3352.2,3351.2,0.1675165]
[1735666647777,2.98329,3352.0,3351.2,0.1675165]
[1735666647937,0.7978,3352.6,3351.3,3.02916461]
[1735666648277,2.98217,3353.3,3351.3,3.02916461]
[1735666648278,3.78841559,3353.2,3351.4,0.821]
[1735666648428,6.77065559,3353.2,3351.4,0.821]
[1735666648635,2.98235,3353.1,3352.1,2.98315]
[1735666648957,2.98158,3354.0,3352.8,2.98254]
[1735666648958,1.1920282,3353.8,3352.8,2.98254]
[1735666649156,1.1920282,3353.8,3352.3,0.821]
[1735666649560,1.1920282,3353.8,3352.9,0.03630803]
[1735666649561,2.98242,3353.0,3352.9,0.03630803]
[1735666649744,0.7978,3352.0,3350.6,2.98446]
[1735666649950,0.7978,3352.0,3350.7,2.98443]
[1735666649951,2.98349,3351.8,3350.7,2.98443]
[1735666650331,3.78841559,3352.4,3350.2,2.98481]
[1735666650561,2.98283,3352.6,3351.4,2.98381]
[1735666650776,2.98264,3352.8,3351.4,0.39723265]
[1735666651013,2.98264,3352.8,3351.3,0.821]
[1735666651014,0.7978,3353.2,3351.3,0.821]
[1735666651367,4.58621559,3353.9,3351.6,0.821]
[1735666651681,4.58621559,3353.9,3352.0,0.821]
[1735666652103,4.58621559,3353.9,3352.3,2.98298]
[1735666652276,2.98198,3353.5,3352.3,2.98296]
[1735666652478,7.56789559,3353.9,3352.5,2.98281]
[1735666652695,2.98169,3353.8,3352.2,2.98303]
[1735666652891,4.58621559,3353.9,3352.0,0.821]
[1735666652892,3.78841559,3353.4,3352.0,0.821]
[1735666653092,2.98222,3353.2,3352.0,0.821]
[1735666653471,2.98262,3352.8,3352.0,0.821]
[1735666653784,2.98267,3352.7,3352.0,0.821]
[1735666653979,3.78841559,3353.4,3352.0,0.821]
[1735666654199,2.98217,3353.3,3352.2,2.98308]
[1735666654816,0.7978,3353.9,3352.0,0.821]
[1735666655048,2.98125,3354.3,3353.0,0.821]
[1735666655313,2.98129,3354.3,3353.0,3.80337]
[1735666655465,2.98152,3354.0,3353.0,0.821]
[1735666655667,2.98142,3354.1,3353.0,0.821]
[1735666656101,2.9808,3354.8,3353.0,4.18373]
[1735666656305,3.78841559,3354.9,3353.9,0.821]
[1735666656506,2.98093,3354.7,3353.9,0.821]
[1735666657611,2.98088,3354.8,3353.9,0.821]
[1735666658108,2.98132,3354.3,3353.2,2.98218]
[1735666658525,2.98132,3354.3,3353.3,2.98207]
[1735666658727,2.98136,3354.2,3353.1,0.821]
[1735666659024,4.58621559,3354.4,3353.1,0.821]
[1735666659224,2.98139,3354.2,3353.1,0.821]
[1735666659410,4.58621559,3354.4,3353.1,3.80324]
[1735666659614,2.9815,3354.1,3353.1,0.821]
[1735666659812,3.78841559,3353.8,3352.5,0.821]
[1735666660017,0.7978,3353.4,3351.9,0.821]
[1735666660331,2.98288,3352.5,3351.9,0.821]
[1735666660888,2.98244,3353.0,3351.9,0.821]
[1735666661092,2.98226,3353.2,3352.0,2.98329]
[1735666661329,3.78841559,3353.8,3351.9,0.821]
[1735666661622,2.98275,3352.7,3351.9,0.821]
[1735666661796,2.98278,3352.6,3351.9,0.821]
[1735666661999,3.78841559,3353.3,3351.9,0.821]
[1735666662315,3.78841559,3352.3,3351.3,0.7704]
[1735666662517,3.0,3352.7,3351.3,0.7704]
[1735666662890,2.98341,3351.9,3351.3,0.7704]
[1735666663092,5.98269,3352.7,3351.2,0.1675165]
[1735666663093,2.98381,3351.5,3351.2,0.1675165]
[1735666663317,2.98391,3351.3,3351.2,0.1675165]
[1735666663702,3.78841559,3351.8,3351.2,0.1675165]
[1735666663903,2.98372,3351.6,3351.2,0.1675165]
[1735666664134,2.98391,3351.3,3351.2,0.1675165]
[1735666664687,2.98391,3351.3,3350.5,0.005]
[1735666664688,2.98454,3350.6,3350.5,0.005]
[1735666664996,390.0,3350.0,3348.6,0.7704]
[1735666665301,3.78841559,3349.9,3348.6,0.7704]
[1735666665506,6.77364559,3349.9,3348.6,0.7704]
[1735666665729,390.0,3350.0,3348.6,0.7704]
[1735666665954,390.0,3350.0,3348.6,2.98624]
[1735666666238,390.0,3350.0,3349.1,2.98582]
[1735666666393,390.0,3350.0,3348.7,0.7704]
[1735666666730,390.0,3350.0,3349.1,2.98581]
[1735666666935,390.0,3350.0,3349.0,2.98595]
[1735666667092,390.0,3350.0,3349.9,2.98516]
[1735666667304,329.339645,3350.0,3349.9,15.02357559]
[1735666667601,317.94528489,3350.0,3349.9,5.98516]
[1735666667789,317.94528489,3350.0,3349.9,2.98516]
[1735666669093,314.62049164,3350.0,3349.9,2.98516]
[1735666669619,314.62049164,3350.0,3349.8,0.005]
[1735666669931,314.62049164,3350.0,3349.0,2.98588]
[1735666670294,315.95132623,3350.0,3349.0,2.98588]
[1735666670657,314.62049164,3350.0,3349.0,2.98594]
[1735666670795,314.62049164,3350.0,3348.6,2.98624]
[1735666671133,2.98552,3349.5,3348.3,2.98949]
[1735666671511,2.98552,3349.5,3348.3,0.00298]
[1735666671709,2.98566,3349.4,3348.3,0.00298]
[1735666672126,0.7521,3349.6,3348.3,0.00298]
[1735666672319,2.98577,3349.3,3348.3,0.00298]
[1735666672496,3.7521,3349.6,3348.3,0.00298]
[1735666672704,2.98562,3349.4,3348.3,0.00298]
[1735666673008,2.98626,3348.7,3348.3,0.00298]
[1735666673338,2.98619,3348.8,3348.3,0.00298]
[1735666673541,2.98632,3348.6,3348.3,0.00298]
[1735666673742,2.98647,3348.5,3348.3,0.00298]
[1735666673946,2.98644,3348.5,3348.3,0.00298]
[1735666674116,2.9865,3348.4,3348.3,0.00298]
[1735666675315,2.98667,3348.2,3346.4,2.98825]
[1735666675514,2.98716,3347.7,3346.4,2.98825]
[1735666675845,2.98722,3347.6,3346.5,0.03038286]
[1735666676205,0.298667,3348.1,3346.5,0.03038286]
[1735666676442,2.98705,3347.8,3346.5,3.01855286]
[1735666676627,2.98705,3347.8,3346.6,0.03034681]
[1735666676835,2.98713,3347.7,3346.6,0.03034681]
[1735666677039,0.3285717,3347.8,3346.6,0.03034681]
[1735666677222,0.7693,3347.8,3345.8,0.31650598]
[1735666677423,3.0,3347.2,3345.8,0.31650598]
[1735666677608,3.78841559,3346.9,3345.8,0.005]
[1735666677951,2.98903,3345.6,3344.6,0.1225165]
[1735666678338,0.62397606,3345.8,3344.6,0.1225165]
[1735666678646,0.62397606,3345.5,3344.6,0.1225165]
[1735666678953,0.7693,3344.7,3344.6,0.1225165]
[1735666679121,1.39327606,3344.7,3343.4,1.85032026]
[1735666679328,2.99064,3343.8,3342.4,0.3736]
[1735666679650,2.99037,3344.1,3343.5,0.03105459]
[1735666679953,2.98946,3345.1,3343.4,2.99095]
[1735666680152,0.7693,3346.0,3343.2,0.1236]
[1735666680153,3.7693,3346.0,3343.6,3.78841559]
[1735666680447,0.62397606,3345.9,3343.7,0.03026764]
[1735666680647,0.7693,3346.2,3344.4,3.78841559]
[1735666680851,0.7693,3346.2,3344.5,3.1236]
[1735666681013,0.15498424,3346.5,3344.5,3.14353883]
[1735666681207,0.15498424,3346.5,3344.5,0.15357883]
[1735666681423,3.78841559,3346.1,3344.5,0.02997883]
[1735666681720,2.98954,3345.0,3343.9,0.1236]
[1735666681924,0.7693,3345.9,3343.9,0.1236]
[1735666682128,3.75803,3345.9,3344.0,0.03015932]
[1735666682432,2.98894,3345.7,3344.2,2.99023]
[1735666682646,2.98902,3345.6,3344.2,2.99023]
[1735666682847,2.98882,3345.8,3344.3,0.03005102]
[1735666683153,0.92428424,3346.5,3344.1,0.1236]
[1735666683305,0.92428424,3346.5,3345.2,0.1236]
[1735666683660,0.15498424,3346.5,3345.3,3.02083088]
[1735666683819,0.15498424,3346.5,3345.3,0.03158088]
[1735666684233,2.98848,3346.2,3345.3,0.03158088]
[1735666684433,0.15498424,3346.5,3345.3,0.03158088]
[1735666684642,0.15498424,3346.5,3345.4,2.98915]
[1735666684810,0.15498424,3346.5,3345.4,3.02395862]
[1735666685213,0.15498424,3346.5,3345.4,3.82322421]
[1735666685533,1.197131,3347.2,3346.2,2.98846]
[1735666685741,1.197131,3347.2,3345.9,3.91201559]
[1735666685947,1.197131,3347.2,3346.3,0.03426028]
[1735666686120,0.7693,3348.8,3347.2,0.1236]
[1735666686325,0.7693,3348.8,3347.6,2.98716]
[1735666686547,0.7693,3348.8,3346.5,3.0]
[1735666686548,0.7693,3348.7,3346.0,0.1236]
[1735666686851,0.7693,3348.7,3344.7,0.25]
[1735666686852,0.7693,3346.7,3345.4,0.1568]
[1735666687022,2.98823,3346.5,3345.4,0.1568]
[1735666687210,0.7693,3348.1,3345.6,3.0]
[1735666687409,0.7693,3348.1,3346.1,0.1568]
[1735666687609,2.98654,3348.4,3346.1,0.1568]
[1735666687848,0.7693,3348.6,3347.4,2.98733]
[1735666688039,0.7693,3348.6,3346.6,0.1568]
[1735666688237,0.7693,3348.6,3347.0,2.98767]
[1735666688410,2.98614,3348.8,3347.1,2.98766]
[1735666688615,4.18212,3349.3,3347.1,0.0323422]
[1735666688817,2.98626,3348.7,3347.3,2.98746]
[1735666689059,2.98602,3349.0,3347.0,3.78841559]
[1735666689229,0.532663,3349.2,3347.6,2.98719]
[1735666689429,2.98587,3349.1,3347.6,2.98719]
[1735666689747,3.532663,3349.2,3347.7,0.03212601]
[1735666690058,5.98627,3348.7,3346.6,3.14488]
[1735666690257,2.98632,3348.6,3347.0,2.98774]
[1735666690442,3.0,3348.7,3346.7,0.03248636]
[1735666690650,2.98659,3348.3,3347.1,0.0323422]
[1735666690821,3.78841559,3348.8,3346.6,3.14483]
[1735666690822,3.78841559,3348.8,3347.2,0.03230616]
[1735666691025,0.80903786,3349.1,3348.1,2.98668]
[1735666691324,0.7693,3349.4,3348.2,0.03005518]
[1735666691543,0.37521,3349.5,3348.2,0.03005518]
[1735666691858,0.37521,3349.5,3347.7,0.1568]
[1735666692029,6.77366559,3349.8,3348.5,2.9864]
[1735666692360,0.7925,3350.4,3348.9,2.98603]
[1735666692530,0.7925,3350.4,3349.2,2.98577]
[1735666692880,2.98424,3351.0,3348.8,0.1568]
[1735666692881,1.195909,3350.7,3348.8,0.1568]
[1735666693023,2.98438,3350.8,3349.0,2.98596]
[1735666693223,0.7925,3351.0,3348.8,0.1568]
[1735666693529,0.7925,3351.0,3348.8,3.14287]
[1735666693530,2.98447,3350.7,3348.8,3.14287]
[1735666693739,0.7925,3351.0,3349.3,2.98565]
[1735666693981,0.7925,3351.0,3348.8,3.14287]
[1735666693982,2.98449,3350.7,3349.5,2.98551]
[1735666694189,0.7925,3351.0,3348.8,0.1568]
[1735666694389,2.98433,3350.9,3349.4,2.98552]
[1735666694680,0.7925,3349.9,3348.8,0.1568]
[1735666694900,2.98553,3349.5,3348.3,2.98658]
[1735666695039,3.78841559,3349.7,3348.2,0.1568]
[1735666695244,0.7925,3349.9,3348.7,2.98623]
[1735666695438,317.61679121,3350.0,3349.0,2.98594]
[1735666695760,317.61679121,3350.0,3347.9,3.0]
[1735666695761,314.62049164,3350.0,3349.3,2.98569]
[1735666695938,314.62049164,3350.0,3349.8,2.98521]
[1735666696154,314.62049164,3350.0,3349.9,2.98516]
[1735666696352,314.62049164,3350.0,3349.4,0.1568]
[1735666696608,314.62049164,3350.0,3349.9,2.98516]
[1735666696961,314.57049164,3350.0,3349.9,2.98516]
[1735666698002,314.57049164,3350.0,3349.4,0.1568]
[1735666698201,314.57049164,3350.0,3349.9,2.98516]
[1735666698380,314.57049164,3350.0,3349.9,3.14196]
[1735666699179,308.60033164,3350.0,3349.9,11.69196]
[1735666699340,303.96591164,3350.0,3349.9,11.94196]
[1735666699541,303.96591164,3350.0,3349.9,12.19196]
[1735666700000,273.00008188,3350.0,3349.9,12.19196]
[1735666700222,254.53127199,3350.0,3349.9,12.19196]
[1735666700389,244.23003062,3350.0,3349.9,12.19196]
[1735666700568,244.23003062,3350.0,3349.9,11.14196]
[1735666700773,244.23003062,3350.0,3349.9,11.39196]
[1735666701137,244.23003062,3350.0,3349.9,11.94196]
[1735666701287,241.24495062,3350.0,3349.9,11.94196]
[1735666701603,239.75241062,3350.0,3349.9,11.94196]
[1735666702422,234.49394865,3350.0,3349.9,11.94196]
[1735666702752,226.26452717,3350.0,3349.9,11.94196]
[1735666703069,201.78427325,3350.0,3349.9,11.94196]
[1735666703269,191.32441452,3350.0,3349.9,11.94196]
[1735666703724,191.32441452,3350.0,3349.9,8.39196]
[1735666703902,186.89252871,3350.0,3349.9,8.39196]
[1735666704214,186.89252871,3350.0,3349.9,3.14196]
[1735666704872,186.89252871,3350.0,3348.7,2.98617]
[1735666705072,186.89252871,3350.0,3349.9,2.98516]
[1735666705648,186.89252871,3350.0,3349.9,5.98516]
[1735666705649,179.42982871,3350.0,3349.9,5.98516]
[1735666705853,179.42982871,3350.0,3349.9,7.98516]
[1735666706119,179.42982871,3350.0,3349.9,11.53516]
[1735666706407,179.42982871,3350.0,3349.9,10.98516]
[1735666706408,174.95220871,3350.0,3349.9,10.98516]
[1735666706608,171.96712871,3350.0,3349.9,10.98516]
[1735666706818,171.96712871,3350.0,3349.9,5.98516]
[1735666706967,171.96712871,3350.0,3349.9,10.98516]
[1735666707174,171.96712871,3350.0,3349.9,8.90815]
[1735666708332,171.96712871,3350.0,3348.8,1.783]
[1735666708333,171.96712871,3350.0,3348.5,0.25]
[1735666708482,171.96712871,3350.0,3348.0,0.25]
[1735666708679,174.03075872,3350.0,3348.2,2.98667]
[1735666708916,174.03075872,3350.0,3348.9,2.98605]
[1735666709122,171.96712871,3350.0,3348.2,2.98667]
[1735666709444,171.96712871,3350.0,3349.9,2.98516]
[1735666709978,164.50442871,3350.0,3349.9,10.98516]
[1735666710193,164.50442871,3350.0,3349.9,5.98516]
[1735666710404,164.50442871,3350.0,3349.9,2.98516]
[1735666713822,157.04172871,3350.0,3349.9,2.98516]
[1735666715094,149.57902871,3350.0,3349.9,5.98516]
[1735666715402,145.10140871,3350.0,3349.9,5.98516]
[1735666718706,145.10140871,3350.0,3349.7,2.9853]
[1735666718925,146.83013112,3350.0,3348.3,2.98659]
[1735666719126,3.78841559,3349.7,3348.0,0.31139639]
[1735666719341,0.8152,3349.4,3347.7,2.98711]
[1735666719545,3.78841559,3349.2,3348.0,2.98681]
[1735666719762,3.78841559,3349.2,3347.4,3.0]
[1735666719911,3.78841559,3349.2,3348.1,2.98673]
[1735666720122,3.78841559,3349.2,3348.2,2.98667]
[1735666720431,3.78841559,3349.2,3347.0,0.25]
[1735666720432,4.54732915,3349.2,3347.0,0.25]
[1735666720943,4.54732915,3349.2,3347.1,3.29912243]
[1735666721267,4.54732915,3349.2,3347.5,2.98723]
[1735666721483,4.54732915,3349.2,3347.1,0.31146243]
[1735666721621,4.54732915,3349.2,3347.9,2.98694]
[1735666721817,0.53625292,3349.1,3347.9,2.98694]
[1735666722019,3.78841559,3348.2,3347.1,0.31146243]